bitfinex/quotes_BTCUSD_20250730
["timestamp","ask_amount","ask_price","bid_price","bid_amount"]
[1753845594430,24.13556637,118150.0,118140.0,0.54553797]
[1753845595523,24.13556637,118150.0,118140.0,0.3420273]
[1753845595722,24.19390637,118150.0,118140.0,0.1874773]
[1753845595924,24.19390637,118150.0,118140.0,0.3169573]
[1753845600650,24.19390637,118150.0,118140.0,0.1874773]
[1753845600853,24.31946176,118150.0,118140.0,0.3169173]
[1753845601062,24.31946176,118150.0,118140.0,0.1874773]
[1753845601271,24.65946176,118150.0,118140.0,0.103]
[1753845601476,24.667925,118150.0,118140.0,0.103]
[1753845601680,28.8035054,118150.0,118140.0,0.23248]
[1753845601892,24.65099191,118150.0,118140.0,0.23148]
[1753845602094,24.65099191,118150.0,118140.0,0.22948]
[1753845602598,24.65099191,118150.0,118140.0,0.23048]
[1753845602803,24.65099191,118150.0,118140.0,0.23148]
[1753845606832,24.73519456,118150.0,118140.0,0.23148]
[1753845607688,24.65099191,118150.0,118140.0,0.23148]
[1753845623576,24.65945515,118150.0,118140.0,0.23148]
[1753845624433,24.66791853,118150.0,118140.0,0.23148]
[1753845624630,24.65945515,118150.0,118140.0,0.23148]
[1753845625044,24.66791853,118150.0,118140.0,0.23148]
[1753845625259,24.75239583,118150.0,118140.0,0.23148]
[1753845625866,24.76985132,118150.0,118140.0,0.23148]
[1753845627703,24.77831463,118150.0,118140.0,0.23148]
[1753845628924,24.76985125,118150.0,118140.0,0.23148]
[1753845629601,24.76138808,118150.0,118140.0,0.23148]
[1753845630507,24.76985125,118150.0,118140.0,0.23148]
[1753845630982,24.67691078,118150.0,118140.0,0.23148]
[1753845631219,24.65099191,118150.0,118140.0,0.23148]
[1753845635586,24.67691078,118150.0,118140.0,0.23148]
[1753845636199,29.08845779,118150.0,118140.0,0.102]
[1753845636408,29.58552833,118150.0,118140.0,0.102]
[1753845637041,29.58552833,118150.0,118140.0,0.101]
[1753845637252,29.58552833,118150.0,118140.0,0.1]
[1753845637494,29.63552833,118150.0,118140.0,0.1]
[1753845637718,29.63307876,118150.0,118140.0,0.1]
[1753845637921,29.68396876,118150.0,118140.0,0.1]
[1753845638143,29.66568339,118150.0,118140.0,0.1]
[1753845638589,29.68396237,118150.0,118140.0,0.1]
[1753845639442,29.68841833,118150.0,118140.0,0.1]
[1753845639645,29.79589156,118150.0,118140.0,0.1]
[1753845639862,29.70669156,118150.0,118140.0,0.1]
[1753845641115,29.70769156,118150.0,118140.0,0.1]
[1753845641755,29.68495662,118150.0,118140.0,0.1]
[1753845641975,29.65903775,118150.0,118140.0,0.1]
[1753845642630,25.54936975,118150.0,118140.0,0.1]
[1753845643092,29.65903775,118150.0,118140.0,0.1]
[1753845643531,29.68449175,118150.0,118140.0,0.1]
[1753845644221,29.71041062,118150.0,118140.0,0.1]
[1753845644902,30.04898062,118150.0,118140.0,0.1]
[1753845646753,25.93931262,118150.0,118140.0,0.1]
[1753845646967,30.04898062,118150.0,118140.0,0.1]
[1753845649914,25.93931262,118150.0,118140.0,0.1]
[1753845650175,30.04894206,118150.0,118140.0,0.1]
[1753845652948,25.93927406,118150.0,118140.0,0.1]
[1753845653162,30.04894206,118150.0,118140.0,0.1]
[1753845654605,29.91942206,118150.0,118140.0,0.1]
[1753845654831,30.04886206,118150.0,118140.0,0.1]
[1753845657912,29.53842589,118150.0,118140.0,0.1]
[1753845658121,30.02019122,118150.0,118140.0,0.1]
[1753845658340,30.23844214,118150.0,118140.0,0.1]
[1753845658522,30.22019122,118150.0,118140.0,0.1]
[1753845659001,30.15142424,118150.0,118140.0,0.12596]
[1753845659212,30.27028458,118150.0,118140.0,0.12596]
[1753845659421,30.29374458,118150.0,118140.0,0.12596]
[1753845659752,30.29686458,118150.0,118140.0,0.12596]
[1753845660393,29.95468062,118150.0,118140.0,0.12596]
[1753845660603,29.18644089,118150.0,118140.0,0.16092]
[1753845660816,25.20629289,118150.0,118140.0,0.14502]
[1753845661070,25.56374191,118150.0,118140.0,0.12902]
[1753845661694,25.43422191,118150.0,118140.0,0.12902]
[1753845662983,24.93422191,118150.0,118140.0,0.12902]
[1753845663640,25.06390191,118150.0,118140.0,0.12902]
[1753845664052,25.06390191,118150.0,118140.0,0.16142]
[1753845664053,24.93422191,118150.0,118140.0,0.16142]
[1753845666184,24.91677289,118150.0,118140.0,0.16142]
[1753845666869,24.86713637,118150.0,118140.0,0.16142]
[1753845667082,24.91377289,118150.0,118140.0,0.16142]
[1753845673543,24.93723289,118150.0,118140.0,0.12596]
[1753845674157,24.93723289,118150.0,118140.0,0.15736]
[1753845676729,24.94035289,118150.0,118140.0,0.1]
[1753845677445,24.94035289,118150.0,118140.0,0.10199]
[1753845678053,24.94035289,118150.0,118140.0,0.12596]
[1753845679758,24.94035289,118150.0,118140.0,0.15676]
[1753845679759,24.93723289,118150.0,118140.0,0.15676]
[1753845680625,24.88759637,118150.0,118140.0,0.15676]
[1753845680834,24.94017289,118150.0,118140.0,0.12596]
[1753845681012,24.94017289,118150.0,118140.0,0.10199]
[1753845681375,24.89053637,118150.0,118140.0,0.10199]
[1753845681626,24.94017289,118150.0,118140.0,0.10199]
[1753845681949,24.94017289,118150.0,118140.0,0.12518]
[1753845682605,24.91377289,118150.0,118140.0,0.15903]
[1753845684061,24.91377289,118150.0,118140.0,0.15588]
[1753845687532,24.93645289,118150.0,118140.0,0.15588]
[1753845687978,24.93939289,118150.0,118140.0,0.10199]
[1753845688180,24.93939289,118150.0,118140.0,0.1]
[1753845693725,24.93939289,118150.0,118140.0,0.12517]
[1753845698229,24.93939289,118150.0,118140.0,0.10198]
[1753845700824,24.93939289,118150.0,118140.0,0.1]
[1753845703091,24.88975637,118150.0,118140.0,0.1]
[1753845703486,24.93939289,118150.0,118140.0,0.1]
[1753845705616,24.93939289,118150.0,118140.0,0.10198]
[1753845705861,24.86413637,118150.0,118140.0,0.2444973]
[1753845706094,24.91377289,118150.0,118140.0,0.2444973]
[1753845706986,24.86377289,118150.0,118140.0,0.2444973]
[1753845707184,24.86377289,118150.0,118140.0,0.2454973]
[1753845707185,24.81413637,118150.0,118140.0,0.2454973]
[1753845707673,24.81413637,118150.0,118140.0,0.41478797]
[1753845707674,24.52377289,118150.0,118140.0,0.41478797]
[1753845707883,24.23520289,118150.0,118140.0,0.2454973]
[1753845708106,24.23520289,118150.0,118140.0,0.2444973]
[1753845708314,24.18520289,118150.0,118140.0,0.2444973]
[1753845708738,24.18520289,118150.0,118140.0,0.2454973]
[1753845709154,24.18520289,118150.0,118140.0,0.25414506]
[1753845709385,24.18520289,118150.0,118140.0,0.25314506]
[1753845709543,24.18520289,118150.0,118140.0,0.25714506]
[1753845709753,24.23520289,118150.0,118140.0,0.25714506]
[1753845711571,24.23520289,118150.0,118140.0,0.2484973]
[1753845713432,24.18556637,118150.0,118140.0,0.2484973]
[1753845713649,24.23520289,118150.0,118140.0,0.2484973]
[1753845715363,24.23520289,118150.0,118140.0,0.2453473]
[1753845719677,24.25830289,118150.0,118140.0,0.2453473]
[1753845720576,24.20866637,118150.0,118140.0,0.2453473]
[1753845720823,24.25830289,118150.0,118140.0,0.2453473]
[1753845721028,24.26145289,118150.0,118140.0,0.2453473]
[1753845723254,24.26145289,118150.0,118140.0,0.2221573]
[1753845727670,24.26145289,118150.0,118140.0,0.1884773]
[1753845736500,24.21181637,118150.0,118140.0,0.1884773]
[1753845736702,24.26145289,118150.0,118140.0,0.1884773]
[1753845736903,24.13556637,118150.0,118140.0,0.42693236]
[1753845737110,24.13556637,118150.0,118140.0,0.41846797]
[1753845737321,24.13556637,118150.0,118140.0,0.4269325]
[1753845737947,24.13556637,118150.0,118140.0,0.41646797]
[1753845738341,24.13556637,118150.0,118140.0,0.4279325]
[1753845738769,24.13556637,118150.0,118140.0,0.4513695]
[1753845739149,24.13556637,118150.0,118140.0,0.44690497]
[1753845740313,24.13556637,118150.0,118140.0,0.4553695]
[1753845740674,24.13556637,118150.0,118140.0,0.44690497]
[1753845741518,24.13556637,118150.0,118140.0,0.46383367]
[1753845742228,24.13556637,118150.0,118140.0,0.46383374]
[1753845742733,24.13556637,118150.0,118140.0,0.45536943]
[1753845743038,24.13556637,118150.0,118140.0,0.4553695]
[1753845743174,24.13556637,118150.0,118140.0,0.46383396]
[1753845744036,24.13556637,118150.0,118140.0,0.4553695]
[1753845744237,24.13556637,118150.0,118140.0,0.44690497]
[1753845744659,24.13556637,118150.0,118140.0,0.44376497]
[1753845745302,24.13556637,118150.0,118140.0,0.4522295]
[1753845745512,24.13556637,118150.0,118140.0,0.44376497]
[1753845745717,24.15666426,118150.0,118140.0,0.44376497]
[1753845746162,24.15973426,118150.0,118140.0,0.44376497]
[1753845749132,24.15973426,118150.0,118140.0,0.41900497]
[1753845751964,24.15973426,118150.0,118140.0,0.38620497]
[1753845754923,24.15973426,118150.0,118140.0,0.2169143]
[1753845760734,24.15973426,118150.0,118140.0,0.41969497]
[1753845760935,24.15666426,118150.0,118140.0,0.44253497]
[1753845761528,24.15666426,118150.0,118140.0,0.4509995]
[1753845761752,24.15666426,118150.0,118140.0,0.44253497]
[1753845762185,24.15973426,118150.0,118140.0,0.44253497]
[1753845762401,24.15973426,118150.0,118140.0,0.4509995]
[1753845762655,24.15973426,118150.0,118140.0,0.44253497]
[1753845763946,24.15973426,118150.0,118140.0,0.4509995]
[1753845764155,24.15973426,118150.0,118140.0,0.45946389]
[1753845764836,24.15973426,118150.0,118140.0,0.4679282]
[1753845765040,24.15973426,118150.0,118140.0,0.4509995]
[1753845765694,24.15973426,118150.0,118140.0,0.44253497]
[1753845765821,24.15973426,118150.0,118140.0,0.41969497]
[1753845766038,24.15973426,118150.0,118140.0,0.4281595]
[1753845766501,24.15973426,118150.0,118140.0,0.41969497]
[1753845766749,24.15973426,118150.0,118140.0,0.4281595]
[1753845766958,24.15973426,118150.0,118140.0,0.41969497]
[1753845767524,24.15973426,118150.0,118140.0,0.4281595]
[1753845767977,24.15973426,118150.0,118140.0,0.41969497]
[1753845768212,24.15973426,118150.0,118140.0,0.38819497]
[1753845769104,24.15973426,118150.0,118140.0,0.38620497]
[1753845769327,24.15973426,118150.0,118140.0,0.2169143]
[1753845769568,24.17623426,118150.0,118140.0,0.2169143]
[1753845769766,24.19243426,118150.0,118140.0,0.2169143]
[1753845771726,24.17623426,118150.0,118140.0,0.38620497]
[1753845771949,24.15973426,118150.0,118140.0,0.38620497]
[1753845776208,24.15973426,118150.0,118140.0,0.38836497]
[1753845777264,24.13366426,118150.0,118140.0,0.45921381]
[1753845777464,24.13366426,118150.0,118140.0,0.47933208]
[1753845785148,24.13366426,118150.0,118140.0,0.47614208]
[1753845785368,24.15730426,118150.0,118140.0,0.47614208]
[1753845786932,24.13366426,118150.0,118140.0,0.47614208]
[1753845790822,24.15730426,118150.0,118140.0,0.47614208]
[1753845791277,24.13366426,118150.0,118140.0,0.47933208]
[1753845791922,24.13366426,118150.0,118140.0,0.81933208]
[1753845792575,24.13366426,118150.0,118140.0,0.83714458]
[1753845794776,24.13366426,118150.0,118140.0,0.96622458]
[1753845795679,24.13366426,118150.0,118140.0,0.95922458]
[1753845796092,24.13366426,118150.0,118140.0,0.97022458]
[1753845797436,24.13366426,118150.0,118140.0,1.23502458]
[1753845800787,24.13366426,118150.0,118140.0,1.23183458]
[1753845801764,24.15674426,118150.0,118140.0,1.23183458]
[1753845807744,24.15979426,118150.0,118140.0,1.23183458]
[1753845808489,24.05768307,118150.0,118140.0,1.23183458]
[1753845808897,24.05768307,118150.0,118140.0,1.23489458]
[1753845810028,24.05768307,118150.0,118140.0,1.23183458]
[1753845810884,24.08076307,118150.0,118140.0,1.23183458]
[1753845811947,24.08381307,118150.0,118140.0,1.23183458]
[1753845815577,24.03387117,118150.0,118140.0,1.23183458]
[1753845815819,24.03387117,118150.0,118140.0,1.20891458]
[1753845819497,24.03082117,118150.0,118140.0,1.23383458]
[1753845819737,24.00774117,118150.0,118140.0,1.23383458]
[1753845820016,24.00774117,118150.0,118140.0,1.43719458]
[1753845820892,24.03082117,118150.0,118140.0,1.43719458]
[1753845822251,24.03387117,118150.0,118140.0,1.43719458]
[1753845823108,24.03387117,118150.0,118140.0,1.41227458]
[1753845823320,24.03387117,118150.0,118140.0,1.41011458]
[1753845824181,24.03387117,118150.0,118140.0,1.39451458]
[1753845827250,23.9904343,118150.0,118140.0,1.39451458]
[1753845830041,23.9904343,118150.0,118140.0,1.37911458]
[1753845834706,24.0235343,118150.0,118140.0,1.37903458]
[1753845837407,24.0235343,118150.0,118140.0,1.36122208]
[1753845837620,24.0235343,118150.0,118140.0,1.36158556]
[1753845838322,24.0235343,118150.0,118140.0,1.36122208]
[1753845838554,24.0235343,118150.0,118140.0,1.36158556]
[1753845839028,24.0235343,118150.0,118140.0,1.09678556]
[1753845839890,24.0235343,118150.0,118140.0,1.09642208]
[1753845840341,24.0235343,118150.0,118140.0,1.09678556]
[1753845840693,24.0235343,118150.0,118140.0,1.09642208]
[1753845842102,24.0235343,118150.0,118140.0,0.75642208]
[1753845842813,24.0235343,118150.0,118140.0,0.75642215]
[1753845843065,24.0235343,118150.0,118140.0,0.76488618]
[1753845843978,24.0235343,118150.0,118140.0,0.73949367]
[1753845844238,24.0235343,118150.0,118140.0,0.75642216]
[1753845844454,24.0235343,118150.0,118140.0,0.76488619]
[1753845845149,24.0235343,118150.0,118140.0,0.75642216]
[1753845845393,24.0235343,118150.0,118140.0,0.74795806]
[1753845845626,24.0235343,118150.0,118140.0,0.75642216]
[1753845845851,24.0235343,118150.0,118140.0,0.76488619]
[1753845846300,24.0235343,118150.0,118140.0,0.75642216]
[1753845846988,24.0235343,118150.0,118140.0,0.76488619]
[1753845847438,23.9643043,118150.0,118140.0,1.14694521]
[1753845848385,23.9890143,118150.0,118140.0,1.14694521]
[1753845849753,23.9922343,118150.0,118140.0,1.14694521]
[1753845850694,23.9922343,118150.0,118140.0,1.41174521]
[1753845851485,23.9922343,118150.0,118140.0,1.38923521]
[1753845852677,24.0078343,118150.0,118140.0,1.38923521]
[1753845853896,24.0078343,118150.0,118140.0,1.38713521]
[1753845854101,24.0237343,118150.0,118140.0,1.38713521]
[1753845856031,24.0237343,118150.0,118140.0,1.25813521]
[1753845856235,24.0237343,118150.0,118140.0,1.37092619]
[1753845856454,24.0237343,118150.0,118140.0,1.10612619]
[1753845864280,24.0237343,118150.0,118140.0,0.96742216]
[1753845864495,24.0237343,118150.0,118140.0,0.75750223]
[1753845864707,24.0237343,118150.0,118140.0,0.76596626]
[1753845865350,24.0237343,118150.0,118140.0,0.74650223]
[1753845865550,24.0237343,118150.0,118140.0,0.75050223]
[1753845865776,24.0237343,118150.0,118140.0,0.75450223]
[1753845866352,24.0237343,118150.0,118140.0,0.74603813]
[1753845866857,24.0237343,118150.0,118140.0,0.7545023]
[1753845867338,24.0237343,118150.0,118140.0,0.74603813]
[1753845867551,24.0237343,118150.0,118140.0,0.7629664]
[1753845867787,24.0237343,118150.0,118140.0,0.7545023]
[1753845868023,24.0237343,118150.0,118140.0,0.76296633]
[1753845868284,24.0237343,118150.0,118140.0,0.7545023]
[1753845868907,24.0237343,118150.0,118140.0,0.74603813]
[1753845869227,24.0237343,118150.0,118140.0,0.7545023]
[1753845869478,24.0237343,118150.0,118140.0,0.7291095]
[1753845869694,24.0237343,118150.0,118140.0,0.74603805]
[1753845870778,24.0237343,118150.0,118140.0,0.75450215]
[1753845871324,24.0237343,118150.0,118140.0,0.76296618]
[1753845871967,23.9643043,118150.0,118140.0,1.12778618]
[1753845872200,23.9643043,118150.0,118140.0,1.1482152]
[1753845872853,23.9643043,118150.0,118140.0,1.1442152]
[1753845873077,23.9643043,118150.0,118140.0,1.1372352]
[1753845873344,23.9643043,118150.0,118140.0,1.1482352]
[1753845874413,23.9875843,118150.0,118140.0,1.4130352]
[1753845875649,23.9905843,118150.0,118140.0,1.4130352]
[1753845876264,23.9905843,118150.0,118140.0,1.3903352]
[1753845876469,24.0065843,118150.0,118140.0,1.3903352]
[1753845878680,23.9905843,118150.0,118140.0,1.4130352]
[1753845879923,23.9905843,118150.0,118140.0,1.3903352]
[1753845881907,24.0224843,118150.0,118140.0,1.3882152]
[1753845882840,24.0224843,118150.0,118140.0,1.37056618]
[1753845886176,24.0224843,118150.0,118140.0,1.10576618]
[1753845892191,24.0224843,118150.0,118140.0,0.97588618]
[1753845892411,24.0224843,118150.0,118140.0,1.10556618]
[1753845893528,24.0224843,118150.0,118140.0,1.09956618]
[1753845893738,24.0224843,118150.0,118140.0,1.10356618]
[1753845894497,24.0224843,118150.0,118140.0,1.09856618]
[1753845894854,24.0224843,118150.0,118140.0,1.10256618]
[1753845895716,24.0224843,118150.0,118140.0,1.09410208]
[1753845895925,24.0224843,118150.0,118140.0,0.9390295]
[1753845896156,24.0224843,118150.0,118140.0,1.09406194]
[1753845899945,24.0224843,118150.0,118140.0,1.08559791]
[1753845900368,24.0224843,118150.0,118140.0,0.73713381]
[1753845900581,24.0224843,118150.0,118140.0,0.72020497]
[1753845900803,24.0224843,118150.0,118140.0,0.5509143]
[1753845903533,24.0224843,118150.0,118140.0,0.72020497]
[1753845903937,24.0224843,118150.0,118140.0,0.7286695]
[1753845904158,24.0224843,118150.0,118140.0,0.72020497]
[1753845904785,24.0224843,118150.0,118140.0,0.5509143]
[1753845907008,24.0224843,118150.0,118140.0,0.7286695]
[1753845907687,24.0224843,118150.0,118140.0,0.72020497]
[1753845908559,24.0224843,118150.0,118140.0,0.7286695]
[1753845908766,24.0224843,118150.0,118140.0,0.72020497]
[1753845910246,24.0224843,118150.0,118140.0,0.7286695]
[1753845910714,24.0224843,118150.0,118140.0,0.72020497]
[1753845913834,24.0224843,118150.0,118140.0,0.7286695]
[1753845914465,24.0224843,118150.0,118140.0,0.72020497]
[1753845915333,24.0224843,118150.0,118140.0,0.7286695]
[1753845915557,24.0224843,118150.0,118140.0,0.72020497]
[1753845916467,24.0224843,118150.0,118140.0,0.7286695]
[1753845916887,24.0224843,118150.0,118140.0,0.72020497]
[1753845917358,24.0224843,118150.0,118140.0,0.7286695]
[1753845917777,24.0224843,118150.0,118140.0,0.72020497]
[1753845922077,24.0224843,118150.0,118140.0,0.72866943]
[1753845922274,24.0224843,118150.0,118140.0,0.7286695]
[1753845923054,24.0224843,118150.0,118140.0,0.73713396]
[1753845923270,23.9643043,118150.0,118140.0,0.77946208]
[1753845923495,23.9643043,118150.0,118140.0,1.1708811]
[1753845927507,23.9643043,118150.0,118140.0,1.4356811]
[1753845933806,23.9643043,118150.0,118140.0,1.4173111]
[1753845934014,23.9889443,118150.0,118140.0,1.4017111]
[1753845935414,23.9918943,118150.0,118140.0,1.4017111]
[1753845936998,23.9918943,118150.0,118140.0,1.3783411]
[1753845941134,23.9918943,118150.0,118140.0,1.4017111]
[1753845942855,23.9643043,118150.0,118140.0,1.4017111]
[1753845943094,23.9643043,118150.0,118140.0,1.4341111]
[1753845943248,23.9643043,118150.0,118140.0,1.43754458]
[1753845943862,23.9643043,118150.0,118140.0,1.43354458]
[1753845944066,23.9643043,118150.0,118140.0,1.42954458]
[1753845944292,23.9643043,118150.0,118140.0,1.43454458]
[1753845944495,23.9643043,118150.0,118140.0,1.44154458]
[1753845944738,23.9643043,118150.0,118140.0,1.43654458]
[1753845945142,23.9643043,118150.0,118140.0,1.44154458]
[1753845947939,23.9643043,118150.0,118140.0,1.4411811]
[1753845948158,23.9643043,118150.0,118140.0,1.44154458]
[1753845948609,23.9643043,118150.0,118140.0,1.43847458]
[1753845949050,23.9874743,118150.0,118140.0,1.43847458]
[1753845949733,23.9904043,118150.0,118140.0,1.25103458]
[1753845949963,24.0069043,118150.0,118140.0,1.3798311]
[1753845950179,24.0234043,118150.0,118140.0,1.3798311]
[1753845950663,24.0234043,118150.0,118140.0,0.98852497]
[1753845950877,24.0234043,118150.0,118140.0,0.7271895]
[1753845951093,24.0234043,118150.0,118140.0,0.73565396]
[1753845951326,24.0234043,118150.0,118140.0,0.74065396]
[1753845951546,24.0234043,118150.0,118140.0,0.7491182]
[1753845951766,24.0234043,118150.0,118140.0,0.74911827]
[1753845951977,24.0234043,118150.0,118140.0,0.75758251]
[1753845952194,24.0234043,118150.0,118140.0,0.74911835]
[1753845952406,24.0234043,118150.0,118140.0,0.72372497]
[1753845953743,24.0234043,118150.0,118140.0,0.71672497]
[1753845954620,24.0234043,118150.0,118140.0,0.5474343]
[1753845954856,24.07304082,118150.0,118140.0,0.5475143]
[1753845955076,24.07304082,118150.0,118140.0,0.5535143]
[1753845955878,24.07304082,118150.0,118140.0,0.5425143]
[1753845956351,24.07304082,118150.0,118140.0,0.5465143]
[1753845957466,24.07304082,118150.0,118140.0,0.5505143]
[1753845960045,24.07304082,118150.0,118140.0,0.5250773]
[1753845964605,24.07304082,118150.0,118140.0,0.5250773]
[1753845969143,24.07304082,118150.0,118140.0,0.5210773]
[1753845969411,24.07304082,118150.0,118140.0,0.5240773]
[1753845970067,24.07304082,118150.0,118140.0,0.5200773]
[1753845970282,24.07304082,118150.0,118140.0,0.3167173]
[1753845970843,24.07304082,118150.0,118140.0,0.3197173]
[1753845984080,24.12304082,118150.0,118140.0,0.3197173]
[1753845992154,24.12304082,118150.0,118140.0,0.1904773]
[1753845992362,24.46304082,118150.0,118140.0,0.3196773]
[1753845992781,24.54751812,118150.0,118140.0,0.3196773]
[1753845993020,24.54751812,118150.0,118140.0,0.3166773]
[1753845993143,24.54751812,118150.0,118140.0,0.3136773]
[1753845993349,24.54751812,118150.0,118140.0,0.3146773]
[1753845993788,24.54751812,118150.0,118140.0,0.2312]
[1753845994040,24.57343714,118150.0,118140.0,0.2312]
[1753845994666,24.57343714,118150.0,118140.0,0.2302]
[1753845995733,24.57343714,118150.0,118140.0,0.2292]
[1753845997680,24.58190031,118150.0,118140.0,0.2292]
[1753845997896,24.57343714,118150.0,118140.0,0.2292]
[1753845998106,24.54751812,118150.0,118140.0,0.2292]
[1753846004846,24.46304082,118150.0,118140.0,0.2292]
[1753846006206,24.41304082,118150.0,118140.0,0.2292]
[1753846006633,24.46304082,118150.0,118140.0,0.2292]
[1753846006906,24.41304082,118150.0,118140.0,0.2292]
[1753846007102,24.46304082,118150.0,118140.0,0.2292]
[1753846007313,24.41304082,118150.0,118140.0,0.2292]
[1753846007745,24.46304082,118150.0,118140.0,0.2292]
[1753846008158,24.41304082,118150.0,118140.0,0.23131]
[1753846008372,24.46304082,118150.0,118140.0,0.23131]
[1753846008580,24.54672795,118150.0,118140.0,0.2292]
[1753846020211,24.59538189,118150.0,118140.0,0.1]
[1753846020421,24.59538189,118150.0,118140.0,0.2292]
[1753846020422,24.57264697,118150.0,118140.0,0.2292]
[1753846022740,24.54672795,118150.0,118140.0,0.2292]
[1753846032655,24.57264014,118150.0,118140.0,0.2292]
[1753846032854,24.56417697,118150.0,118140.0,0.2292]
[1753846034296,24.57264021,118150.0,118140.0,0.2292]
[1753846034497,24.56417697,118150.0,118140.0,0.2292]
[1753846034856,24.48048984,118150.0,118140.0,0.2292]
[1753846035338,24.3043043,118150.0,118140.0,0.257]
[1753846035595,24.3543043,118150.0,118140.0,0.257]
[1753846035819,24.0143043,118150.0,118140.0,0.3720773]
[1753846036053,24.3543043,118150.0,118140.0,0.3720773]
[1753846036275,24.06394082,118150.0,118140.0,0.3720773]
[1753846036496,23.9643043,118150.0,118140.0,0.54136797]
[1753846036713,24.01394082,118150.0,118140.0,0.54136797]
[1753846036957,24.01394082,118150.0,118140.0,0.55183243]
[1753846037215,24.01394082,118150.0,118140.0,0.54336797]
[1753846037422,24.01394082,118150.0,118140.0,0.55829674]
[1753846037653,24.01394082,118150.0,118140.0,0.56876098]
[1753846037894,24.01394082,118150.0,118140.0,0.56229674]
[1753846038129,24.01394082,118150.0,118140.0,0.56229682]
[1753846038349,24.01394082,118150.0,118140.0,0.55383243]
[1753846038558,24.01394082,118150.0,118140.0,0.54536797]
[1753846038785,24.01394082,118150.0,118140.0,0.5538325]
[1753846038993,24.01394082,118150.0,118140.0,0.56229696]
[1753846039486,24.01394082,118150.0,118140.0,0.57076127]
[1753846040127,24.01394082,118150.0,118140.0,0.57076135]
[1753846041402,24.01394082,118150.0,118140.0,0.57922566]
[1753846041602,24.01394082,118150.0,118140.0,0.57076135]
[1753846041806,24.01394082,118150.0,118140.0,0.56229696]
[1753846042005,24.01394082,118150.0,118140.0,0.5538325]
[1753846042631,24.01394082,118150.0,118140.0,0.54536797]
[1753846043231,24.01394082,118150.0,118140.0,0.5538325]
[1753846043645,24.01394082,118150.0,118140.0,0.56229696]
[1753846044120,24.01394082,118150.0,118140.0,0.5538325]
[1753846044817,24.01394082,118150.0,118140.0,0.3760773]
[1753846049922,24.01394082,118150.0,118140.0,0.56229689]
[1753846050221,24.01394082,118150.0,118140.0,0.5538325]
[1753846050921,24.01394082,118150.0,118140.0,0.3760773]
[1753846053288,24.01394082,118150.0,118140.0,0.3729073]
[1753846053495,24.01394082,118150.0,118140.0,0.38137183]
[1753846053715,24.01394082,118150.0,118140.0,0.3729073]
[1753846054807,24.01394082,118150.0,118140.0,0.38137183]
[1753846055217,24.01394082,118150.0,118140.0,0.3729073]
[1753846057281,24.01394082,118150.0,118140.0,0.55912696]
[1753846057937,23.9643043,118150.0,118140.0,0.5707707]
[1753846058622,23.9643043,118150.0,118140.0,0.56230667]
[1753846058833,23.9643043,118150.0,118140.0,0.57077084]
[1753846059040,23.9643043,118150.0,118140.0,0.57723494]
[1753846059264,23.9643043,118150.0,118140.0,0.58569897]
[1753846059477,23.9643043,118150.0,118140.0,0.58023494]
[1753846059709,23.9643043,118150.0,118140.0,0.56977084]
[1753846059918,23.9643043,118150.0,118140.0,0.58669897]
[1753846060273,23.9643043,118150.0,118140.0,0.59520684]
[1753846060537,23.9643043,118150.0,118140.0,0.59820684]
[1753846061296,23.9643043,118150.0,118140.0,0.60667094]
[1753846062519,23.9643043,118150.0,118140.0,0.59820684]
[1753846062975,23.9643043,118150.0,118140.0,0.58974267]
[1753846063382,23.9643043,118150.0,118140.0,0.58656267]
[1753846063535,23.9643043,118150.0,118140.0,0.59502684]
[1753846065306,23.9643043,118150.0,118140.0,0.58656267]
[1753846065515,23.9643043,118150.0,118140.0,0.59502684]
[1753846065720,23.9643043,118150.0,118140.0,0.58656267]
[1753846066146,23.9901943,118150.0,118140.0,0.56401274]
[1753846066463,23.9901943,118150.0,118140.0,0.53979698]
[1753846066690,23.9901943,118150.0,118140.0,0.53133274]
[1753846066903,23.9901943,118150.0,118140.0,0.52286843]
[1753846067146,23.9901943,118150.0,118140.0,0.53133282]
[1753846067972,23.9901943,118150.0,118140.0,0.53979713]
[1753846068178,23.9901943,118150.0,118140.0,0.58046137]
[1753846068559,23.9901943,118150.0,118140.0,0.57199713]
[1753846069629,23.9901943,118150.0,118140.0,0.58046137]
[1753846069836,23.9901943,118150.0,118140.0,0.58892554]
[1753846070081,23.9901943,118150.0,118140.0,0.58046137]
[1753846070299,23.9901943,118150.0,118140.0,0.45972554]
[1753846070503,23.9901943,118150.0,118140.0,0.58034137]
[1753846071947,23.9901943,118150.0,118140.0,0.58880554]
[1753846072156,23.9901943,118150.0,118140.0,0.59083518]
[1753846072370,23.9901943,118150.0,118140.0,0.58237079]
[1753846072576,23.9901943,118150.0,118140.0,0.60679079]
[1753846075730,23.9901943,118150.0,118140.0,0.58986252]
[1753846076637,23.9901943,118150.0,118140.0,0.56544252]
[1753846076822,23.9901943,118150.0,118140.0,0.56544281]
[1753846077075,23.9901943,118150.0,118140.0,0.53121281]
[1753846077320,23.9901943,118150.0,118140.0,0.53967705]
[1753846077756,23.9901943,118150.0,118140.0,0.54814122]
[1753846077758,23.9901943,118150.0,118140.0,0.55660482]
[1753846077997,23.9901943,118150.0,118140.0,0.54814079]
[1753846078608,23.9901943,118150.0,118140.0,0.53121252]
[1753846079044,23.9901943,118150.0,118140.0,0.54814079]
[1753846079663,23.9901943,118150.0,118140.0,0.53121252]
[1753846082163,23.9901943,118150.0,118140.0,0.53967669]
[1753846082616,23.9901943,118150.0,118140.0,0.53121252]
[1753846083299,23.9901943,118150.0,118140.0,0.53967669]
[1753846083754,23.9901943,118150.0,118140.0,0.54814079]
[1753846084223,23.9901943,118150.0,118140.0,0.55863482]
[1753846084430,23.9901943,118150.0,118140.0,0.61425482]
[1753846085679,23.9901943,118150.0,118140.0,0.60579079]
[1753846085889,23.9901943,118150.0,118140.0,0.53324252]
[1753846086228,23.9901943,118150.0,118140.0,0.5481413]
[1753846086464,23.9901943,118150.0,118140.0,0.54814137]
[1753846087055,23.9901943,118150.0,118140.0,0.55660547]
[1753846087680,23.9901943,118150.0,118140.0,0.54814137]
[1753846088913,23.9901943,118150.0,118140.0,0.55660547]
[1753846089138,23.9901943,118150.0,118140.0,0.55660497]
[1753846089584,23.9901943,118150.0,118140.0,0.55863497]
[1753846089817,23.9870043,118150.0,118140.0,0.61435497]
[1753846090002,23.9643043,118150.0,118140.0,0.61435497]
[1753846093852,23.9868543,118150.0,118140.0,0.61435497]
[1753846094451,23.9900543,118150.0,118140.0,0.61435497]
[1753846095003,23.9900543,118150.0,118140.0,0.58147094]
[1753846095246,23.9900543,118150.0,118140.0,0.58305497]
[1753846095480,23.9868543,118150.0,118140.0,0.61495497]
[1753846095752,23.9643043,118150.0,118140.0,0.61495497]
[1753846096700,23.9538047,118150.0,118140.0,0.61495497]
[1753846097331,23.9538047,118150.0,118140.0,0.61797497]
[1753846098398,23.9538047,118150.0,118140.0,0.95797497]